{"text_format":"1","workbook":"xlsx","n_sheets":7,"sheets":["Lists","Summary","WAG Gymnasts","WAG Coaches & Judges","MAG Gymnasts","MAG Coaches & Judges","Pswd"],"not_rendered":{"charts":0,"images":1,"macros":1,"external_links":0,"defined_names":52,"comments":1,"pivot_tables":0},"unopened":[],"bounds":{"document_bytes":16777216,"sheet_cells":100000,"rows_first":2000,"rows_last":500,"rows_between":2000,"halvings":0,"cell_chars":16384,"cell_head_chars":4096},"cells_cut":0,"cells_raw":0,"read":"whole","date_system":"1900"}

{"sheet":"Lists","index":0,"n_rows":174,"n_cols":34,"rows_kept":174,"cut":false,"hidden":true,"merged":[]}
["Lists used on other sheets…",null,null,"Year of Meet: ",2019,null,null,"Meet Name: ","Queen City MAG Invitational 2019"]
[null,null,null,null,null,null,null,"Meet Dates: ","April 6, 2019"]
["Note: ","Hide this sheet normally, ",null,null,null,null,null,"Entry Deadline: ","March 6, 2019"]
[null,"  especially before sending the file to clubs.",null,null,null,null,null,"Late Entrry Fee: ",40]
[]
[null,"FEES:",null,null,null,null,null,"Host Name: ","Queen City Gymnastics Club"]
[null,"Level","$/gymnast","# gymnasts",null,null,null,"Host Addr: ","455 Maxwell Crescent"]
["WAG","Developmental",0,{"$f":"COUNTIF('WAG Gymnasts'!$M$5:$M$64,$E8)","v":0},1,null,null,"Host City: ","Regina, SK"]
["WAG","JO 1-2",0,{"$f":"COUNTIF('WAG Gymnasts'!$M$5:$M$64,$E9)","v":0},2,null,null,"Host Postal Code: ","S4N 5X9"]
["WAG","JO 3-8",0,{"$f":"COUNTIF('WAG Gymnasts'!$M$5:$M$64,$E10)","v":0},3,null,null,"Host Phone #: ","(306) 757-5311"]
["WAG","JO 9 - 10",0,{"$f":"COUNTIF('WAG Gymnasts'!$M$5:$M$64,$E11)","v":0},4]
["WAG","Aspire 1, 2",0,{"$f":"COUNTIF('WAG Gymnasts'!$M$5:$M$64,$E12)","v":0},5]
["WAG","HP Novice, Jr, Sr",0,{"$f":"COUNTIF('WAG Gymnasts'!$M$5:$M$64,$E13)","v":0},6]
["WAG",null,null,{"$f":"COUNTIF('WAG Gymnasts'!$M$5:$M$64,$E14)","v":0},7]
["WAG",null,null,{"$f":"COUNTIF('WAG Gymnasts'!$M$5:$M$64,$E15)","v":0},8]
["WAG",null,null,{"$f":"COUNTIF('WAG Gymnasts'!$M$5:$M$64,$E16)","v":0},9,null,null,"List of Months",null,"Yes No Reply"]
["MAG","JO 3",40,{"$f":"COUNTIF('MAG Gymnasts'!$M$5:$M$64,$E17)","v":0},1,null,1,"Jan",null,"Yes"]
["MAG","JO 4-7",110,{"$f":"COUNTIF('MAG Gymnasts'!$M$5:$M$64,$E18)","v":0},2,null,2,"Feb",null,"No"]
["MAG","Prov 3-5",110,{"$f":"COUNTIF('MAG Gymnasts'!$M$5:$M$64,$E19)","v":0},3,null,3,"Mar"]
["MAG","Elite 3-4",110,{"$f":"COUNTIF('MAG Gymnasts'!$M$5:$M$64,$E20)","v":0},4,null,4,"Apr"]
["MAG","Nat'l:  Open, Junior, Senior",110,{"$f":"COUNTIF('MAG Gymnasts'!$M$5:$M$64,$E21)","v":0},5,null,5,"May"]
["MAG",null,null,{"$f":"COUNTIF('MAG Gymnasts'!$M$5:$M$64,$E22)","v":0},6,null,6,"Jun"]
["MAG",null,null,{"$f":"COUNTIF('MAG Gymnasts'!$M$5:$M$64,$E23)","v":0},7,null,7,"Jul"]
["MAG",null,null,{"$f":"COUNTIF('MAG Gymnasts'!$M$5:$M$64,$E24)","v":0},8,null,8,"Aug"]
["MAG",null,null,{"$f":"COUNTIF('MAG Gymnasts'!$M$5:$M$64,$E25)","v":0},9,null,9,"Sep"]
[null,null,null,null,null,null,10,"Oct"]
[null,"Note:  when fee is $0, that row is greyed out ",null,null,null,null,11,"Nov"]
[null,"on the 'Summary' sheet for fees.",null,null,null,null,12,"Dec"]
[null,null,null,null,null,null,null,null,null,null,null,null,null,null,null,null,"Note: Change these age groups within the categories as needed - see Gym Sask guide in November each year for the following season."]
[null,"The summary sheet will use these labels too.",null,null,null,null,null,null,null,null,null,null,"Year of Competition: ",2019,"**  Ages shown are as of end of previous year (aka the start of this year).  "]
[null,null,null,null,null,null,null,null,null,null,"Index","Code for",null,"Year Born:",{"$f":"N30-4","v":2015},{"$f":"O31-1","v":2014},{"$f":"P31-1","v":2013},{"$f":"Q31-1","v":2012},2011,2010,2009,2008,2007,2006,2005,2004,2003,2002,2001,2000,1999,1998]
[null,null,null,null,null,null,null,null,null,"WAG_PopUpList_Categories","to Cat.","Fees Level","WAG_Categories  ",{"$f":"\"Age at start of \" &$N$30&\":\"","v":"Age at start of 2019:"},{"$f":"$N$30-O31-1","v":3},{"$f":"O32+1","v":4},{"$f":"P32+1","v":5},6,7,8,9,10,11,12,13,14,15,16,17,18,19,20]
[null,null,null,null,null,null,null,null,null,"JO-1",3,0,"Interclub: ","Masters","X","X","X","X","X","X","X","X","X","X","X","X","X"]
[null,null,null,null,null,null,null,null,null,"JO-2",4,0,"Interclub: ","Developmental",null,null,null,null,null,null,"X","X","X","X","X","X","X","X","X","X","X","X"]
[null,null,null,null,null,null,null,null,null,"JO-3",5,2,"Interclub: ","JO-1","X","X","X"]
[null,null,null,null,null,null,null,null,null,"JO-4",6,2,"Interclub: ","JO-2","X","X","X"]
[null,null,null,null,null,null,null,null,null,"JO-5",7,3,"Provincial: ","JO-3","X","X","X","X",2011,2010,{"$f":"U31","v":2009},{"$f":"V31","v":2008},2007,2006,2005,2006,"2003 & before",{"$f":"AA37","v":"2003 & before"},"2003 & before","2003 & before","2003 & before","2003 & before",null,"√"]
[null,null,null,null,null,null,null,null,null,"JO-6",8,3,"Provincial: ","JO-4","X","X","X","X","X","2008 & after","2008 & after","2008 & after","2007 & before","2007 & before","2007 & before","2007 & before","2007 & before","2007 & before","2007 & before","2007 & before","2007 & before","2007 & before",null,"√"]
[null,null,null,null,null,null,null,null,null,"JO-7",9,3,"Provincial: ","JO-5","X","X","X","X","X","2010 & before",{"$f":"T39","v":"2010 & before"},{"$f":"U39","v":"2010 & before"},{"$f":"V39","v":"2010 & before"},"2010 & before","2010 & before","2010 & before","2010 & before","2010 & before","2010 & before","2010 & before","2010 & before","2010 & before",null,"√"]
[null,null,null,null,null,null,null,null,null,"JO-8",10,3,"Provincial: ","JO-6","X","X","X","X","X","2007 & after","2007 & after","2007 & after","2007 & after","2007 & before","2006 & before","2007 & before","2007 & before","2007 & before","2007 & before","2007 & before","2007 & before","2007 & before",null,"√"]
[null,null,null,null,null,null,null,null,null,"JO-9 (Prov)",11,3,"Provincial: ","JO-7","X","X","X","X","X","2007 & after","2007 & after","2007 & after","2007 & after","2007 & before","2006 & before","2007 & before","2007 & before","2007 & before","2007 & before","2007 & before","2007 & before","2007 & before",null,"√"]
[null,null,null,null,null,null,null,null,null,"JO-9 (Nat'l)",12,3,"Provincial: ","JO-8","X","X","X","X","X","2007 & after","2007 & after","2007 & after","2007 & after","2007 & before","2006 & before","2007 & before","2007 & before","2007 & before","2007 & before","2007 & before","2007 & before","2007 & before",null,"√"]
[null,null,null,null,null,null,null,null,null,"JO-10",13,4,"Provincial: ","JO-9 (Prov)","X","X","X","X","X","X","X","X","X","X",{"$f":"Y31&\" & before\"","v":"2005 & before"},{"$f":"Y43","v":"2005 & before"},{"$f":"Z43","v":"2005 & before"},"2005 & before","2005 & before","2005 & before","2005 & before","2005 & before",null,"√"]
[null,null,null,null,null,null,null,null,null,"Aspire 1 (Prov)",14,4,"National: ","JO-9 (Nat'l)","X","X","X","X","X","X","X",{"$f":"V31&\"-\"&X31","v":"2008-2006"},{"$f":"V44","v":"2008-2006"},{"$f":"W44","v":"2008-2006"},"X","X","X","X","X","X","X","X",null,"√"]
[null,null,null,null,null,null,null,null,null,"Aspire 2 (Nat'l)",15,4,"National: ","JO-10","X","X","X","X","X","X","X","X",{"$f":"W31&\"-\"&Z31","v":"2007-2004"},{"$f":"W45","v":"2007-2004"},{"$f":"X45","v":"2007-2004"},"2007-2004",{"$f":"AA31&\" & before\"","v":"2003 & before"},{"$f":"AA45","v":"2003 & before"},{"$f":"AB45","v":"2003 & before"},"2003 & before","2003 & before","2003 & before",null,"√"]
[null,null,null,null,null,null,null,null,null,"HP Novice",16,5,"Aspire: ","Aspire 1 (Prov)","X","X","X","X","X",null,null,null,"X","X","X","X","X","X","X","X","X","X"]
[null,null,null,null,null,null,null,null,null,"HP Junior",17,5,"Aspire: ","Aspire 2 (Nat'l)","X","X","X","X","X","X",null,null,"X","X","X","X","X","X","X","X","X","X"]
[null,null,null,null,null,null,null,null,null,"HP Senior",18,6,"National: ","HP Novice","X","X","X","X","X","X","X",null,null,null,"X","X","X","X","X","X","X","X"]
[null,null,null,null,null,null,null,null,null,null,null,6,"National: ","HP Junior","X","X","X","X","X","X","X","X",null,null,null,null,"X","X","X","X","X","X"]
[null,null,null,null,null,null,null,null,null,null,null,6,"National: ","HP Senior","X","X","X","X","X","X","X","X","X","X"]
[]
[]
[]
[null,null,null,null,null,null,null,null,null,null,"Index","Code for",null,null,"**  Ages shown are as of end of previous year (aka the start of this year).  ",null,null,null,null,null,"Probably not needed, no sublevels."]
[null,null,null,null,null,null,null,null,null,"MAG_PopUpList_Categories","to Cat.","Fees Level",null,"MAG_Categories",{"$f":"O32","v":3},{"$f":"P32","v":4},5,6,7,8,9,10,11,12,13,14,15,16,17,18,19,20]
[null,null,null,null,null,null,null,null,null,"JO-3",4,0,"InterClub: ","Masters","X","X","X","X","X","X","X","X","X","X","X","X","X"]
[null,null,null,null,null,null,null,null,null,"JO-4",5,0,"InterClub: ","JO-1","X","X","X",null,null,null,"X","X","X","X","X","X","X","X","X","X","X","X"]
[null,null,null,null,null,null,null,null,null,"JO-5",6,0,"InterClub: ","JO-2","X","X","X"]
[null,null,null,null,null,null,null,null,null,"JO-6",7,1,"InterClub: ","JO-3","X","X","X"]
[null,null,null,null,null,null,null,null,null,"JO-7",8,2,"InterClub: ","JO-4"]
[null,null,null,null,null,null,null,null,null,"Prov. Level 3",9,2,"Jr. Olympic: ","JO-5"]
[null,null,null,null,null,null,null,null,null,"Prov. Level 4",10,2,"Jr. Olympic: ","JO-6"]
[null,null,null,null,null,null,null,null,null,"Prov. Level 5",11,2,"Jr. Olympic: ","JO-7"]
[null,null,null,null,null,null,null,null,null,"Elite 3",12,3,"Provincial: ","Prov. Level 3"]
[null,null,null,null,null,null,null,null,null,"Elite 4",13,3,"Provincial: ","Prov. Level 4"]
[null,null,null,null,null,null,null,null,null,"Nat'l Open",14,3,"Provincial: ","Prov. Level 5"]
[null,null,null,null,null,null,null,null,null,"Nat'l Junior",15,4,"Elite: ","Elite 3"]
[null,null,null,null,null,null,null,null,null,"Nat'l Senior",16,4,"Elite: ","Elite 4"]
[null,null,null,null,null,null,null,null,null,null,null,5,"National: ","Nat'l Open"]
[null,null,null,null,null,null,null,null,null,null,null,5,"National: ","Nat'l Junior"]
[null,null,null,null,null,null,null,null,null,null,null,5,"National: ","Nat'l Senior"]
[null,null,null,null,null,null,null,null,null,null,null,0,"National: ","Nat'l Junior (14-15)"]
[null,null,null,null,null,null,null,null,null,null,null,0,"National: ","Nat'l Junior (16-17)"]
[null,null,null,null,null,null,null,null,null,null,null,0,"National: ","Nat'l Senior (18)"]
[null,null,null,null,null,null,null,null,null,null,null,0,"National: ","Nat'l Senior (19+)"]
[]
[]
[]
[]
[]
[]
[]
[]
[]
[]
[]
[]
[]
[]
[null,null,null,null,null,null,null,null,null,null,null,null,null,null,null,"IF(ISBLANK(H5),\"\",H5&\"  \"&INDEX(WAG_SubCategories,J5,K5))"]
[null,null,null,null,null,null,null,null,null,null,null,null,null,null,"Category & level Formula:"]
[null,null,null,null,null,null,null,null,null,null,null,null,null,null,"DO NOT CHANGE;  reference for future use."]
[null,null,null,null,null,null,null,null,null,null,null,null,null,null,"For use in column 'M' on the WAG sheet once the real levels are known"]
[]
[]
[]
[]
[null,null,null,null,null,null,"Invited Gym Clubs…"]
[]
[null,null,null,null,null,null,"Prov.","Club_Abbr","Club_Name","Club_City"]
[null,null,null,null,null,1," SK","Airborne","Airborne Gymnastics Club","Weyburn"]
[null,null,null,null,null,2," SK","Allan","Allan Gymnastics Club","Allan"]
[null,null,null,null,null,3," SK","Asquith","Asquith Gymnastics Club","Asquith"]
[null,null,null,null,null,4," SK","Assiniboia","Assiniboia Gymnastics Club","Assiniboia"]
[null,null,null,null,null,5," SK","Battleford","Battlefords Gymnastics Club","North Battleford"]
[null,null,null,null,null,6," SK","Calico","Calico Gymnastics Club","Humboldt"]
[null,null,null,null,null,7," SK","Can-Am","Can-Am Gymnastics Club","Saskatoon"]
[null,null,null,null,null,8," SK","Carnduff","Carnduff Gymnastics Club","Carnduff"]
[null,null,null,null,null,9," SK","Carrot River","Carrot River Gymnastics Club","Carrot River"]
[null,null,null,null,null,10," SK","Energizers","Esterhazy Energizers Gymnastics Club","Esterhazy"]
[null,null,null,null,null,11," SK","Estevan","Estevan Gymnastics Club","Estevan"]
[null,null,null,null,null,12," SK","Explosion-AB","Explosion Gymnastics Club","Lloydminster"]
[null,null,null,null,null,13," SK","Gelico","Gelico Gymnastics Club","Swift Current"]
[null,null,null,null,null,14," SK","Grenfell","Grenfell Gymnastics Club","Grenfell"]
[null,null,null,null,null,15," SK","Gym Adv","Gymnastics Adventure Inc.","Regina"]
[null,null,null,null,null,16," SK","Gymtastiks-SK","Gymtastiks Gymnastics Club","Moose Jaw"]
[null,null,null,null,null,17," SK","Hanley","Hanley Gymnastics Inc","Hanley"]
[null,null,null,null,null,18," SK","J & M Linklater","J & M Linklater Gymnastics Ltd","Saskatoon"]
[null,null,null,null,null,19," SK","Jumpers","Moose Mountain Jumpers Gymnastics Club","Carlyle"]
[null,null,null,null,null,20," SK","Kamsack","Kamsack Gymnastics Club","Kamsack"]
[null,null,null,null,null,21," SK","Kindersley","Kindersley Gymnastics Club","Kindersley"]
[null,null,null,null,null,22," SK","Kyle","Kyle Gymnastics Club","Kyle"]
[null,null,null,null,null,23," SK","La Ronge","La Ronge Gymnastics Club","La Ronge"]
[null,null,null,null,null,24," SK","Lashburn","Lashburn Gymnastics Club","Lashburn"]
[null,null,null,null,null,25," SK","Leapers","Lampman Leapers Gymnastics Club","Lampman"]
[null,null,null,null,null,26," SK","Leaps & Bounds","Leaps & Bounds","Melville"]
[null,null,null,null,null,27," SK","Line 19","Line 19 Gymnastics Club","Loreburn"]
[null,null,null,null,null,28," SK","Luseland","Luseland Gymnastics Club","Luseland"]
[null,null,null,null,null,29," SK","Maidstone","Maidstone Gymnastics Club","Maidstone"]
[null,null,null,null,null,30," SK","Marian","Marian Gymnastics Club","Saskatoon"]
[null,null,null,null,null,31," SK","Meadow Lake","Meadow Lake Gymnastics Club","Meadow Lake"]
[null,null,null,null,null,32," SK","Nipawin Tumblers","Nipawin Tumblers Gymnastics Club","Nipawin"]
[null,null,null,null,null,33," SK","Outlook","Outlook Gymnastics Club","Outlook"]
[null,null,null,null,null,34," SK","PA Aerials","Aerials Gymnastics Club","Prince Albert"]
[null,null,null,null,null,35," SK","Pense","Pense Gymnastics","Pense"]
[null,null,null,null,null,36," SK","Perf. Bal.","Perfect Balance Gymnastics Club","Hudson Bay"]
[null,null,null,null,null,37," SK","Queen City ","Queen City Gymnastics Club","Regina"]
[null,null,null,null,null,38," SK","RGF","Ross Gym and Fit","Wawota"]
[null,null,null,null,null,39," SK","Rocanville","Rocanville Gym Club","Rocanville"]
[null,null,null,null,null,40," SK","Rosetown","Rosetown Gym Club","Rosetown"]
[null,null,null,null,null,41," SK","Springers-SK","Yorkton Shamrock Springers Gym Club","Yorkton"]
[null,null,null,null,null,42," SK","Stockholm","Stockholm Gymnastics Club","Stockholm"]
[null,null,null,null,null,43," SK","Taiso","Taiso Gymnastics Club","Saskatoon"]
[null,null,null,null,null,44," SK","Tumblers-SK","Tumblers Gymnastics","Martensville"]
[null,null,null,null,null,45," SK","Turn-a-Row","Turn-A-Row Gymnastics Club","Wadena"]
[null,null,null,null,null,46," SK","Twisters-SK","Tisdale Twisters Gymnastics Club","Tisdale"]
[null,null,null,null,null,47," SK","Unity","Unity Gymnastics Club","Unity"]
[null,null,null,null,null,48," SK","Valley Gym","Valley Gymnastics Centre","Waldheim"]
[null,null,null,null,null,49," SK","Wapella","Wapella Gymnastics Club","Wapella"]
[null,null,null,null,null,50," SK","Weyburn","Weyburn Gymnastics Club","Weyburn"]
[null,null,null,null,null,51," SK","Wymark","Wymark Gymnastics Club","Wymark"]
[null,null,null,null,null,52," SK","Whitewood","Whitewood Gymnastics Club","Whitewood"]
[null,null,null,null,null,53," SK","Zero Gravity","Zero Gravity Gymnastics Club","Gull Lake"]
[null,null,null,null,null,null," SK-end","______________","~","~"]
[null,null,null,null,null,1,"AB","Altadore-AB","Altadore Gymnastics Club","Calgary, AB"]
[null,null,null,null,null,2,"AB","Calgary Gym-AB","Calgary Gymnastics Centre","Calgary, AB"]
[null,null,null,null,null,3,"AB","Capital City-AB","Capital City Gymnastics Club","Edmonton, AB"]
[null,null,null,null,null,4,"AB","Champions-AB","Champions Gymnastics Club","Edmonton, AB"]
[null,null,null,null,null,5,"AB","Dynamix-AB","Dynamix Gymnastics Club","St. Albert"]
[null,null,null,null,null,6,"AB","Exalta-AB","Exalta Gymnastics Club","Red Deer, AB"]
[null,null,null,null,null,7,"AB","Gymtastics-AB","Gymtastics ","Calgary, AB"]
[null,null,null,null,null,8,"AB","Mtn Shadows-AB","Mountain Shadows Gymnastics Club","Okotoks, AB"]
[null,null,null,null,null,9,"AB","Ortona-AB","Ortona Gymnastics Club","Edmonton, AB"]
[null,null,null,null,null,10,"AB","Phoenix-AB","Phoenix Gymnastics Centre","Edmonton"]
[null,null,null,null,null,11,"AB","Salta-AB","Salta Gymnastics Club","Medicine Hat, AB"]
[null,null,null,null,null,12,"AB","SG Aerials-AB","Spruce Grove Aerials Gymnastics Club","Spruce Grove, AB"]
[null,null,null,null,null,13,"AB","Stampede-AB","Stampede City Gymnastics Club","Calgary, AB"]
[null,null,null,null,null,14,"AB","Westwind-AB","Westwind Gymnastics Club","Lethbridge, AB"]
[null,null,null,null,null,null,"AB-end","______________","~","~"]
[null,null,null,null,null,1,"MB","Eagles-MB","Eagles Gymnastics Club","Brandon, MB"]
[null,null,null,null,null,2,"MB","Keystone-MB","Keystone Kips Gymnastics Club","Winnipeg, MB"]
[null,null,null,null,null,3,"MB","Panthers-MB","Panthers Gymnastics Club","Winnipeg, MB"]
[null,null,null,null,null,4,"MB","Springers-MB","Springers Gymnastics Club","Winnipeg, MB"]
[null,null,null,null,null,null,"MB-end","______________","~","~"]

{"sheet":"Summary","index":1,"n_rows":42,"n_cols":9,"rows_kept":42,"cut":false,"hidden":false,"merged":[[19,8,19,10],[14,4,14,5],[16,8,16,10],[0,4,0,6],[14,8,14,10],[15,8,15,10],[17,8,17,10],[18,8,18,10],[18,4,18,5],[15,4,15,5],[12,4,12,5],[5,5,5,6]]}
["Hide",null,null,null,{"$f":"Meet_Name","v":"Queen City MAG Invitational 2019"}]
["This",null,null,null,{"$f":"Meet_Dates","v":"April 6, 2019"}]
["Col."]
[null,null,null,null,"MEET REGISTRATION FOR CLUBS"]
[]
[null,null,null,null,"ENTRY DEADLINE: ",{"$f":"Entry_Deadline","v":"March 6, 2019"}]
[]
[null,null,null,null,"When completed, email this file to: ","QCGC Meet Director"]
[]
[]
[null,null,null,"Choose your club:  "]
["index",null,null,"Abbrev.","Club Name",null,"City"]
[{"$f":"MATCH(D13,Club_Abbr,0)","v":{"$error":"#N/A"}},null,"Start here -----> ",null,{"$f":"IF(ISBLANK(This_Clubs_Abbrev),\"\",INDEX(Lists!I101:I174,A13))","v":""},null,{"$f":"IF(ISBLANK(This_Clubs_Name),\"\",INDEX(Club_City,A13))","v":""}]
[null,null,null,"Contact person:  "]
[null,null,null,"Name:",null,null,null,null,"Please make one cheque payable to …"]
[null,null,null,"Address:",null,null,null,null,{"$f":"Host_Name","v":"Queen City Gymnastics Club"}]
[null,null,null,"City  /  PC:",null,null,null,null,{"$f":"\"Send the cheque by \"&Entry_Deadline& \" to:\"","v":"Send the cheque by March 6, 2019 to:"}]
[null,null,null,null,null,null,null,null,{"$f":"Host_Addr & \"  ~  \" & Host_City & \"  ~  \" & Host_Postal_Code","v":"455 Maxwell Crescent  ~  Regina, SK  ~  S4N 5X9"}]
[null,null,null,"Email:",null,null,null,null,{"$f":"\"Phone:  \" & Host_Phone","v":"Phone:  (306) 757-5311"}]
[null,null,null,"Phone #  /  Cell #:"]
[null,null,null,null,null,null,null,null,"Registration is not complete until fees and athlete release forms have been received."]
[null,null,"Fee Summary…","(Based on the WAG & MAG athlete sheets)",null,null,null,null,{"$f":"\"NOTE:    A late entry fee of $\"&Late_Entry_Fee&\" per gymnast will be charged.\"","v":"NOTE:    A late entry fee of $40 per gymnast will be charged."}]
[null,null,"Discipline / Type","# Gymnasts","Fee per gymnast","Amount   ",null,null,"Refunds will be issued only for medical reasons upon receipt of a doctor’s certificate."]
[1,1,{"$f":"INDEX(Fees_Level_Names_WAG,B24)","v":"Developmental"},{"$f":"INDEX(WAG_NumGymnasts,$A24)","v":0},{"$f":"INDEX(WAG_Fees,$A24)","v":0},{"$f":"Summ_NumGymnasts*Summ_FeesPerGymnast","v":0}]
[2,2,{"$f":"INDEX(Fees_Level_Names_WAG,B25)","v":"JO 1-2"},0,0,0]
[3,3,"JO 3-8",0,0,0]
[4,4,"JO 9 - 10",0,0,0]
[5,5,"Aspire 1, 2",0,0,0]
[6,6,"HP Novice, Jr, Sr",0,0,0]
[7,7,0,0,0,0]
[8,8,0,0,0,0,{"$f":"SUM(D24:D32)","v":0}]
[9,9,0,0,0,0,{"$f":"G31&\"  WAG Gymnast\"& IF(G31=1,\"\",\"s\") &\" ($\"&SUM(F24:F32)&\")\"","v":"0  WAG Gymnasts ($0)"}]
[1,1,{"$f":"INDEX(Fees_Level_Names_MAG,B33)","v":"JO 3"},{"$f":"INDEX(MAG_NumGymnasts,$A33)","v":0},{"$f":"INDEX(MAG_Fees,$A33)","v":40},0]
[2,2,"JO 4-7",0,110,0]
[3,3,"Prov 3-5",0,110,0]
[4,4,"Elite 3-4",0,110,0]
[5,5,"Nat'l:  Open, Junior, Senior",0,110,0]
[6,6,0,0,0,0]
[7,7,0,0,0,0]
[8,8,0,0,0,0,{"$f":"SUM(D33:D41)","v":0}]
[9,9,0,0,0,0,{"$f":"G40&\"  MAG Gymnast\"& IF(G40=1,\"\",\"s\") &\" ($\"&SUM(F33:F41)&\")\"","v":"0  MAG Gymnasts ($0)"}]
[null,null,null,null,"Total Fees:   ",{"$f":"SUM(F24:F41)","v":0}]

{"sheet":"WAG Gymnasts","index":2,"n_rows":64,"n_cols":16,"rows_kept":64,"cut":false,"hidden":true,"merged":[[1,3,1,7]]}
[null,{"$f":"Meet_Name","v":"Queen City MAG Invitational 2019"},null,"CLUB REGISTRATIONS - WAG GYMNASTS",null,null,null,null,null,null,"Hide Col.","Hide Col.","Hide Col.",null,null,"Hide Col."]
[null,{"$f":"Meet_Dates","v":"April 6, 2019"},"Club: ",{"$f":"This_Clubs_FullName","v":""}]
[null,"xx"]
[null,"First Name","Last Name","Club","City","Year Born","Month Born","Category & age group","Category",{"$f":"\"Age at start of \"&Year_of_Meet","v":"Age at start of 2019"},"Category - Index 1","YOB  - Index 2","Category Fee Code","Elite Screening","Comment","Age sub-cat"]
[1,null,null,{"$f":"IF(ISBLANK(C5),\"\",This_Clubs_Abbrev)","v":""},{"$f":"IF(ISBLANK(C5),\"\",This_Clubs_City)","v":""},null,null,{"$f":"IF(ISBLANK(I5),\"\",I5&IF(P5=0,\"\",\"  (\"&P5&\")\"))","v":""},null,{"$f":"IF(F5=0,0,Year_of_Meet-F5-1)","v":0},{"$f":"IF(ISBLANK(I5),0,MATCH(I5,WAG_Categories,0))","v":0},{"$f":"IF(F5=0,0,MATCH(F5,List_of_BirthYears,0))","v":0},{"$f":"IF(K5=0,0,INDEX(WAG_Fee_Codes,K5))","v":0},"No",null,{"$f":"IF(K5+L5=0,0,INDEX(WAG_SubCategories,K5,L5))","v":0}]
[2,null,null,"","",null,null,"",null,0,0,0,0,"No",null,0]
[3,null,null,"","",null,null,"",null,0,0,0,0,"No",null,0]
[4,null,null,"","",null,null,"",null,0,0,0,0,"No",null,0]
[5,null,null,"","",null,null,"",null,0,0,0,0,"No",null,0]
[6,null,null,"","",null,null,"",null,0,0,0,0,"No",null,0]
[7,null,null,"","",null,null,"",null,0,0,0,0,"No",null,0]
[8,null,null,"","",null,null,"",null,0,0,0,0,"No",null,0]
[9,null,null,"","",null,null,"",null,0,0,0,0,"No",null,0]
[10,null,null,"","",null,null,"",null,0,0,0,0,"No",null,0]
[11,null,null,"","",null,null,"",null,0,0,0,0,"No",null,0]
[12,null,null,"","",null,null,"",null,0,0,0,0,"No",null,0]
[13,null,null,"","",null,null,"",null,0,0,0,0,"No",null,0]
[14,null,null,"","",null,null,"",null,0,0,0,0,"No",null,0]
[15,null,null,"","",null,null,"",null,0,0,0,0,"No",null,0]
[16,null,null,"","",null,null,"",null,0,0,0,0,"No",null,0]
[17,null,null,"","",null,null,"",null,0,0,0,0,"No",null,0]
[18,null,null,"","",null,null,"",null,0,0,0,0,"No",null,0]
[19,null,null,"","",null,null,"",null,0,0,0,0,"No",null,0]
[20,null,null,"","",null,null,"",null,0,0,0,0,"No",null,0]
[21,null,null,"","",null,null,"",null,0,0,0,0,"No",null,0]
[22,null,null,"","",null,null,"",null,0,0,0,0,"No",null,0]
[23,null,null,"","",null,null,"",null,0,0,0,0,"No",null,0]
[24,null,null,"","",null,null,"",null,0,0,0,0,"No",null,0]
[25,null,null,"","",null,null,"",null,0,0,0,0,"No",null,0]
[26,null,null,"","",null,null,"",null,0,0,0,0,"No",null,0]
[27,null,null,"","",null,null,"",null,0,0,0,0,"No",null,0]
[28,null,null,"","",null,null,"",null,0,0,0,0,"No",null,0]
[29,null,null,"","",null,null,"",null,0,0,0,0,"No",null,0]
[30,null,null,"","",null,null,"",null,0,0,0,0,"No",null,0]
[31,null,null,"","",null,null,"",null,0,0,0,0,"No",null,0]
[32,null,null,"","",null,null,"",null,0,0,0,0,"No",null,0]
[33,null,null,{"$f":"IF(ISBLANK(C37),\"\",This_Clubs_Abbrev)","v":""},{"$f":"IF(ISBLANK(C37),\"\",This_Clubs_City)","v":""},null,null,{"$f":"IF(ISBLANK(I37),\"\",I37&IF(P37=0,\"\",\"  (\"&P37&\")\"))","v":""},null,{"$f":"IF(F37=0,0,Year_of_Meet-F37-1)","v":0},{"$f":"IF(ISBLANK(I37),0,MATCH(I37,WAG_Categories,0))","v":0},{"$f":"IF(F37=0,0,MATCH(F37,List_of_BirthYears,0))","v":0},{"$f":"IF(K37=0,0,INDEX(WAG_Fee_Codes,K37))","v":0},"No",null,{"$f":"IF(K37+L37=0,0,INDEX(WAG_SubCategories,K37,L37))","v":0}]
[34,null,null,"","",null,null,"",null,0,0,0,0,"No",null,0]
[35,null,null,"","",null,null,"",null,0,0,0,0,"No",null,0]
[36,null,null,"","",null,null,"",null,0,0,0,0,"No",null,0]
[37,null,null,"","",null,null,"",null,0,0,0,0,"No",null,0]
[38,null,null,"","",null,null,"",null,0,0,0,0,"No",null,0]
[39,null,null,"","",null,null,"",null,0,0,0,0,"No",null,0]
[40,null,null,"","",null,null,"",null,0,0,0,0,"No",null,0]
[41,null,null,"","",null,null,"",null,0,0,0,0,"No",null,0]
[42,null,null,"","",null,null,"",null,0,0,0,0,"No",null,0]
[43,null,null,"","",null,null,"",null,0,0,0,0,"No",null,0]
[44,null,null,"","",null,null,"",null,0,0,0,0,"No",null,0]
[45,null,null,"","",null,null,"",null,0,0,0,0,"No",null,0]
[46,null,null,"","",null,null,"",null,0,0,0,0,"No",null,0]
[47,null,null,"","",null,null,"",null,0,0,0,0,"No",null,0]
[48,null,null,"","",null,null,"",null,0,0,0,0,"No",null,0]
[49,null,null,"","",null,null,"",null,0,0,0,0,"No",null,0]
[50,null,null,"","",null,null,"",null,0,0,0,0,"No",null,0]
[51,null,null,"","",null,null,"",null,0,0,0,0,"No",null,0]
[52,null,null,"","",null,null,"",null,0,0,0,0,"No",null,0]
[53,null,null,"","",null,null,"",null,0,0,0,0,"No",null,0]
[54,null,null,"","",null,null,"",null,0,0,0,0,"No",null,0]
[55,null,null,"","",null,null,"",null,0,0,0,0,"No",null,0]
[56,null,null,"","",null,null,"",null,0,0,0,0,"No",null,0]
[57,null,null,"","",null,null,"",null,0,0,0,0,"No",null,0]
[58,null,null,"","",null,null,"",null,0,0,0,0,"No",null,0]
[59,null,null,"","",null,null,"",null,0,0,0,0,"No",null,0]
[60,null,null,"","",null,null,"",null,0,0,0,0,"No",null,0]

{"sheet":"WAG Coaches & Judges","index":3,"n_rows":45,"n_cols":13,"rows_kept":45,"cut":false,"hidden":true,"merged":[[4,2,4,5],[7,3,8,3],[7,4,8,4]]}
[null,{"$f":"Meet_Name","v":"Queen City MAG Invitational 2019"},null,null,null,null,null,null,null,null,null,null,{"$f":"Meet_Dates","v":"April 6, 2019"}]
[null,"CLUB REGISTRATION - WAG COACHES & JUDGES"]
[null,"Indicate names of your coaches and judges and their sessions."]
[]
[null,"Club:  ",{"$f":"This_Clubs_FullName","v":""},null,null,null,null,null,"Please mark sessions with \"X\" if known."]
[null,null,null,null,null,null,null,"(Sessions & Schedule TBA)"]
[null,null,"Please spell names correctly.",null,null,"Session:",1,{"$f":"G7+1","v":2},{"$f":"H7+1","v":3},4,5,6,7]
[null,null,null,"NCCP\nLevel",null,null,{"$f":"IF(ISBLANK($G$7),\"\",\"Fri\")","v":"Fri"},"Sat","Sat","Sat","Sun","Sun","Sun"]
[null,null,"COACHES",null,null,null,{"$f":"IF(ISBLANK($G$7),\"\",\"Eve.\")","v":"Eve."},"Morn.","Aft.","Eve.","Morn.","Noon"," Afternoon"]
[null,1]
[null,2]
[null,3]
[null,4]
[null,5]
[null,6]
[null,7]
[null,8]
[null,9]
[null,10]
[null,11]
[null,12]
[null,13]
[null,14]
[null,15]
[]
[]
[null,null,null,null,null,null,null,"(Sessions & Schedule TBA)"]
[null,null,null,null,null,"Session:",{"$f":"IF(ISBLANK($G$7),\"\",$G$7)","v":1},{"$f":"H7","v":2},3,4,5,6,7]
[null,null,null,null,null,null,{"$f":"G8","v":"Fri"},{"$f":"H8","v":"Sat"},"Sat","Sat","Sun","Sun","Sun"]
[null,null,"JUDGES","Level",null,null,{"$f":"G9","v":"Eve."},{"$f":"H9","v":"Morn."},"Aft.","Eve.","Morn.","Noon"," Afternoon"]
[null,1]
[null,2]
[null,3]
[null,4]
[null,5]
[null,6]
[null,7]
[null,8]
[null,9]
[null,10]
[null,11]
[null,12]
[null,13]
[null,14]
[null,15]

{"sheet":"MAG Gymnasts","index":4,"n_rows":64,"n_cols":22,"rows_kept":64,"cut":false,"hidden":false,"merged":[[2,10,2,11]]}
[null,{"$f":"Meet_Name","v":"Queen City MAG Invitational 2019"},null,"CLUB REGISTRATION - MEN"]
[null,{"$f":"Meet_Dates","v":"April 6, 2019"},"Club:  ",{"$f":"This_Clubs_FullName","v":""}]
[null,null,null,null,null,null,null,null,null,null,"Used to get full cat name (WAG)"]
[null,"First Name","Last Name","Club","City","Birth Year","Birth Month","Category","Category",{"$f":"\"Age in\"&CHAR(13)&Year_of_Meet","v":"Age in\r2019"},"Cat:\nIndex 1","Age:\nIndex 2","Fee Code\nfor level","misc","Comment","YOB & Month","Age in years","Birth Month","Years (YY)","12-M","Months (MM)","Age for sorting"]
[1,null,null,{"$f":"IF(ISBLANK(C5),\"\",This_Clubs_Name)","v":""},{"$f":"IF(ISBLANK(C5),\"\",Summary!$G$13)","v":""},null,null,{"$f":"T(I5)","v":""},null,{"$f":"IF(F5=0,0,Year_of_Meet-F5)","v":0},{"$f":"IF(ISBLANK(I5),0,MATCH(I5,MAG_Categories,0))","v":0},{"$f":"IF(Q5=0,\"\",MATCH(Q5,MAG_Age_Range,0))","v":""},{"$f":"IF(K5=0,0,INDEX(MAG_Fee_Codes,K5))","v":0},"No",null,{"$f":"(F5)+ (R5/100)","v":0},{"$f":"IF(F5=0,0,Year_of_Meet-F5)","v":0},{"$f":"IF(G5=\"\",0,MATCH(G5,List_of_Months,0))","v":0},{"$f":"IF(Q5<10,\"0\",\"\")&Q5","v":"00"},{"$f":"12-R5","v":12},{"$f":"IF(12-T5<10,\"0\",\"\")&(12-T5)","v":"00"},{"$f":"Q5+(R5/100)","v":0}]
[2,null,null,"",{"$f":"IF(ISBLANK(C6),\"\",Summary!$G$13)","v":""},null,null,"",null,0,0,"",0,"No",null,0,0,0,"00",12,"00",0]
[3,null,null,"",{"$f":"IF(ISBLANK(C7),\"\",Summary!$G$13)","v":""},null,null,"",null,0,0,"",0,"No",null,0,0,0,"00",12,"00",0]
[4,null,null,"",{"$f":"IF(ISBLANK(C8),\"\",Summary!$G$13)","v":""},null,null,"",null,0,0,"",0,"No",null,0,0,0,"00",12,"00",0]
[5,null,null,"",{"$f":"IF(ISBLANK(C9),\"\",Summary!$G$13)","v":""},null,null,"",null,0,0,"",0,"No",null,0,0,0,"00",12,"00",0]
[6,null,null,"",{"$f":"IF(ISBLANK(C10),\"\",Summary!$G$13)","v":""},null,null,"",null,0,0,"",0,"No",null,0,0,0,"00",12,"00",0]
[7,null,null,"",{"$f":"IF(ISBLANK(C11),\"\",Summary!$G$13)","v":""},null,null,"",null,0,0,"",0,"No",null,0,0,0,"00",12,"00",0]
[8,null,null,"",{"$f":"IF(ISBLANK(C12),\"\",Summary!$G$13)","v":""},null,null,"",null,0,0,"",0,"No",null,0,0,0,"00",12,"00",0]
[9,null,null,"",{"$f":"IF(ISBLANK(C13),\"\",Summary!$G$13)","v":""},null,null,"",null,0,0,"",0,"No",null,0,0,0,"00",12,"00",0]
[10,null,null,"",{"$f":"IF(ISBLANK(C14),\"\",Summary!$G$13)","v":""},null,null,"",null,0,0,"",0,"No",null,0,0,0,"00",12,"00",0]
[11,null,null,"",{"$f":"IF(ISBLANK(C15),\"\",Summary!$G$13)","v":""},null,null,"",null,0,0,"",0,"No",null,0,0,0,"00",12,"00",0]
[12,null,null,"",{"$f":"IF(ISBLANK(C16),\"\",Summary!$G$13)","v":""},null,null,"",null,0,0,"",0,"No",null,0,0,0,"00",12,"00",0]
[13,null,null,"",{"$f":"IF(ISBLANK(C17),\"\",Summary!$G$13)","v":""},null,null,"",null,0,0,"",0,"No",null,0,0,0,"00",12,"00",0]
[14,null,null,"",{"$f":"IF(ISBLANK(C18),\"\",Summary!$G$13)","v":""},null,null,"",null,0,0,"",0,"No",null,0,0,0,"00",12,"00",0]
[15,null,null,"",{"$f":"IF(ISBLANK(C19),\"\",Summary!$G$13)","v":""},null,null,"",null,0,0,"",0,"No",null,0,0,0,"00",12,"00",0]
[16,null,null,"",{"$f":"IF(ISBLANK(C20),\"\",Summary!$G$13)","v":""},null,null,"",null,0,0,"",0,"No",null,0,0,0,"00",12,"00",0]
[17,null,null,"",{"$f":"IF(ISBLANK(C21),\"\",Summary!$G$13)","v":""},null,null,"",null,0,0,"",0,"No",null,0,0,0,"00",12,"00",0]
[18,null,null,"",{"$f":"IF(ISBLANK(C22),\"\",Summary!$G$13)","v":""},null,null,"",null,0,0,"",0,"No",null,0,0,0,"00",12,"00",0]
[19,null,null,"",{"$f":"IF(ISBLANK(C23),\"\",Summary!$G$13)","v":""},null,null,"",null,0,0,"",0,"No",null,0,0,0,"00",12,"00",0]
[20,null,null,"",{"$f":"IF(ISBLANK(C24),\"\",Summary!$G$13)","v":""},null,null,"",null,0,0,"",0,"No",null,0,0,0,"00",12,"00",0]
[21,null,null,"",{"$f":"IF(ISBLANK(C25),\"\",Summary!$G$13)","v":""},null,null,"",null,0,0,"",0,"No",null,0,0,0,"00",12,"00",0]
[22,null,null,"",{"$f":"IF(ISBLANK(C26),\"\",Summary!$G$13)","v":""},null,null,"",null,0,0,"",0,"No",null,0,0,0,"00",12,"00",0]
[23,null,null,"",{"$f":"IF(ISBLANK(C27),\"\",Summary!$G$13)","v":""},null,null,"",null,0,0,"",0,"No",null,0,0,0,"00",12,"00",0]
[24,null,null,"",{"$f":"IF(ISBLANK(C28),\"\",Summary!$G$13)","v":""},null,null,"",null,0,0,"",0,"No",null,0,0,0,"00",12,"00",0]
[25,null,null,"",{"$f":"IF(ISBLANK(C29),\"\",Summary!$G$13)","v":""},null,null,"",null,0,0,"",0,"No",null,0,0,0,"00",12,"00",0]
[26,null,null,"",{"$f":"IF(ISBLANK(C30),\"\",Summary!$G$13)","v":""},null,null,"",null,0,0,"",0,"No",null,0,0,0,"00",12,"00",0]
[27,null,null,"",{"$f":"IF(ISBLANK(C31),\"\",Summary!$G$13)","v":""},null,null,"",null,0,0,"",0,"No",null,0,0,0,"00",12,"00",0]
[28,null,null,"",{"$f":"IF(ISBLANK(C32),\"\",Summary!$G$13)","v":""},null,null,"",null,0,0,"",0,"No",null,0,0,0,"00",12,"00",0]
[29,null,null,"",{"$f":"IF(ISBLANK(C33),\"\",Summary!$G$13)","v":""},null,null,"",null,0,0,"",0,"No",null,0,0,0,"00",12,"00",0]
[30,null,null,"",{"$f":"IF(ISBLANK(C34),\"\",Summary!$G$13)","v":""},null,null,"",null,0,0,"",0,"No",null,0,0,0,"00",12,"00",0]
[31,null,null,"",{"$f":"IF(ISBLANK(C35),\"\",Summary!$G$13)","v":""},null,null,"",null,0,0,"",0,"No",null,0,0,0,"00",12,"00",0]
[32,null,null,"",{"$f":"IF(ISBLANK(C36),\"\",Summary!$G$13)","v":""},null,null,"",null,0,0,"",0,"No",null,0,0,0,"00",12,"00",0]
[33,null,null,{"$f":"IF(ISBLANK(C37),\"\",This_Clubs_Name)","v":""},{"$f":"IF(ISBLANK(C37),\"\",Summary!$G$13)","v":""},null,null,{"$f":"T(I37)","v":""},null,{"$f":"IF(F37=0,0,Year_of_Meet-F37)","v":0},{"$f":"IF(ISBLANK(I37),0,MATCH(I37,MAG_Categories,0))","v":0},{"$f":"IF(Q37=0,\"\",MATCH(Q37,MAG_Age_Range,0))","v":""},{"$f":"IF(K37=0,0,INDEX(MAG_Fee_Codes,K37))","v":0},"No",null,{"$f":"(F37)+ (R37/100)","v":0},{"$f":"IF(F37=0,0,Year_of_Meet-F37)","v":0},{"$f":"IF(G37=\"\",0,MATCH(G37,List_of_Months,0))","v":0},{"$f":"IF(Q37<10,\"0\",\"\")&Q37","v":"00"},{"$f":"12-R37","v":12},{"$f":"IF(12-T37<10,\"0\",\"\")&(12-T37)","v":"00"},{"$f":"Q37+(R37/100)","v":0}]
[34,null,null,"",{"$f":"IF(ISBLANK(C38),\"\",Summary!$G$13)","v":""},null,null,"",null,0,0,"",0,"No",null,0,0,0,"00",12,"00",0]
[35,null,null,"",{"$f":"IF(ISBLANK(C39),\"\",Summary!$G$13)","v":""},null,null,"",null,0,0,"",0,"No",null,0,0,0,"00",12,"00",0]
[36,null,null,"",{"$f":"IF(ISBLANK(C40),\"\",Summary!$G$13)","v":""},null,null,"",null,0,0,"",0,"No",null,0,0,0,"00",12,"00",0]
[37,null,null,"",{"$f":"IF(ISBLANK(C41),\"\",Summary!$G$13)","v":""},null,null,"",null,0,0,"",0,"No",null,0,0,0,"00",12,"00",0]
[38,null,null,"",{"$f":"IF(ISBLANK(C42),\"\",Summary!$G$13)","v":""},null,null,"",null,0,0,"",0,"No",null,0,0,0,"00",12,"00",0]
[39,null,null,"",{"$f":"IF(ISBLANK(C43),\"\",Summary!$G$13)","v":""},null,null,"",null,0,0,"",0,"No",null,0,0,0,"00",12,"00",0]
[40,null,null,"",{"$f":"IF(ISBLANK(C44),\"\",Summary!$G$13)","v":""},null,null,"",null,0,0,"",0,"No",null,0,0,0,"00",12,"00",0]
[41,null,null,"",{"$f":"IF(ISBLANK(C45),\"\",Summary!$G$13)","v":""},null,null,"",null,0,0,"",0,"No",null,0,0,0,"00",12,"00",0]
[42,null,null,"",{"$f":"IF(ISBLANK(C46),\"\",Summary!$G$13)","v":""},null,null,"",null,0,0,"",0,"No",null,0,0,0,"00",12,"00",0]
[43,null,null,"",{"$f":"IF(ISBLANK(C47),\"\",Summary!$G$13)","v":""},null,null,"",null,0,0,"",0,"No",null,0,0,0,"00",12,"00",0]
[44,null,null,"",{"$f":"IF(ISBLANK(C48),\"\",Summary!$G$13)","v":""},null,null,"",null,0,0,"",0,"No",null,0,0,0,"00",12,"00",0]
[45,null,null,"",{"$f":"IF(ISBLANK(C49),\"\",Summary!$G$13)","v":""},null,null,"",null,0,0,"",0,"No",null,0,0,0,"00",12,"00",0]
[46,null,null,"",{"$f":"IF(ISBLANK(C50),\"\",Summary!$G$13)","v":""},null,null,"",null,0,0,"",0,"No",null,0,0,0,"00",12,"00",0]
[47,null,null,"",{"$f":"IF(ISBLANK(C51),\"\",Summary!$G$13)","v":""},null,null,"",null,0,0,"",0,"No",null,0,0,0,"00",12,"00",0]
[48,null,null,"",{"$f":"IF(ISBLANK(C52),\"\",Summary!$G$13)","v":""},null,null,"",null,0,0,"",0,"No",null,0,0,0,"00",12,"00",0]
[49,null,null,"",{"$f":"IF(ISBLANK(C53),\"\",Summary!$G$13)","v":""},null,null,"",null,0,0,"",0,"No",null,0,0,0,"00",12,"00",0]
[50,null,null,"",{"$f":"IF(ISBLANK(C54),\"\",Summary!$G$13)","v":""},null,null,"",null,0,0,"",0,"No",null,0,0,0,"00",12,"00",0]
[51,null,null,"",{"$f":"IF(ISBLANK(C55),\"\",Summary!$G$13)","v":""},null,null,"",null,0,0,"",0,"No",null,0,0,0,"00",12,"00",0]
[52,null,null,"",{"$f":"IF(ISBLANK(C56),\"\",Summary!$G$13)","v":""},null,null,"",null,0,0,"",0,"No",null,0,0,0,"00",12,"00",0]
[53,null,null,"",{"$f":"IF(ISBLANK(C57),\"\",Summary!$G$13)","v":""},null,null,"",null,0,0,"",0,"No",null,0,0,0,"00",12,"00",0]
[54,null,null,"",{"$f":"IF(ISBLANK(C58),\"\",Summary!$G$13)","v":""},null,null,"",null,0,0,"",0,"No",null,0,0,0,"00",12,"00",0]
[55,null,null,"",{"$f":"IF(ISBLANK(C59),\"\",Summary!$G$13)","v":""},null,null,"",null,0,0,"",0,"No",null,0,0,0,"00",12,"00",0]
[56,null,null,"",{"$f":"IF(ISBLANK(C60),\"\",Summary!$G$13)","v":""},null,null,"",null,0,0,"",0,"No",null,0,0,0,"00",12,"00",0]
[57,null,null,"",{"$f":"IF(ISBLANK(C61),\"\",Summary!$G$13)","v":""},null,null,"",null,0,0,"",0,"No",null,0,0,0,"00",12,"00",0]
[58,null,null,"",{"$f":"IF(ISBLANK(C62),\"\",Summary!$G$13)","v":""},null,null,"",null,0,0,"",0,"No",null,0,0,0,"00",12,"00",0]
[59,null,null,"",{"$f":"IF(ISBLANK(C63),\"\",Summary!$G$13)","v":""},null,null,"",null,0,0,"",0,"No",null,0,0,0,"00",12,"00",0]
[60,null,null,"",{"$f":"IF(ISBLANK(C64),\"\",Summary!$G$13)","v":""},null,null,"",null,0,0,"",0,"No",null,0,0,0,"00",12,"00",0]

{"sheet":"MAG Coaches & Judges","index":5,"n_rows":45,"n_cols":13,"rows_kept":45,"cut":false,"hidden":false,"merged":[[4,2,4,5],[7,3,8,3],[7,4,8,4]]}
[null,{"$f":"Meet_Name","v":"Queen City MAG Invitational 2019"},null,null,null,null,null,null,null,null,null,{"$f":"Meet_Dates","v":"April 6, 2019"}]
[null,"CLUB REGISTRATION - WAG COACHES & JUDGES"]
[null,"Indicate names of your coaches and judges and their sessions."]
[]
[null,"Club:  ",{"$f":"This_Clubs_FullName","v":""},null,null,null,null,null,"Please mark sessions with \"X\" if known."]
[null,null,null,null,null,null,null,"(Sessions & Schedule TBA)"]
[null,null,"Please spell names correctly.",null,null,"Session:",1,{"$f":"G7+1","v":2},{"$f":"H7+1","v":3},4,5,6,7]
[null,null,null,"NCCP\nLevel",null,null,{"$f":"IF(ISBLANK($G$7),\"\",\"Fri\")","v":"Fri"},"Sat","Sat","Sat","Sun","Sun","Sun"]
[null,null,"COACHES",null,null,null,{"$f":"IF(ISBLANK($G$7),\"\",\"Eve.\")","v":"Eve."},"Morn.","Aft.","Eve.","Morn.","Aft.","Eve."]
[null,1]
[null,2]
[null,3]
[null,4]
[null,5]
[null,6]
[null,7]
[null,8]
[null,9]
[null,10]
[null,11]
[null,12]
[null,13]
[null,14]
[null,15]
[]
[]
[null,null,null,null,null,null,null,"(Sessions & Schedule TBA)"]
[null,null,null,null,null,"Session:",1,{"$f":"G28+1","v":2},{"$f":"H28+1","v":3},{"$f":"I28+1","v":4},{"$f":"J28+1","v":5},{"$f":"K28+1","v":6},{"$f":"L28+1","v":7}]
[null,null,null,null,null,null,{"$f":"IF(ISBLANK($G$7),\"\",\"Fri\")","v":"Fri"},"Sat","Sat","Sat","Sun","Sun","Sun"]
[null,null,"JUDGES","Level",null,null,{"$f":"IF(ISBLANK($G$7),\"\",\"Eve.\")","v":"Eve."},"Morn.","Aft.","Eve.","Morn.","Aft.","Eve."]
[null,1]
[null,2]
[null,3]
[null,4]
[null,5]
[null,6]
[null,7]
[null,8]
[null,9]
[null,10]
[null,11]
[null,12]
[null,13]
[null,14]
[null,15]

{"sheet":"Pswd","index":6,"n_rows":10,"n_cols":2,"rows_kept":10,"cut":false,"hidden":true,"merged":[]}
[]
[]
[]
[null,"Password for all sheets:"]
[]
[null,"GymScore-Registration"]
[]
[]
[]
[null,"No Password needed - 2018"]